bitfinex/quotes_BTCUSD_20250119
["timestamp","ask_amount","ask_price","bid_price","bid_amount"]
[1737321218023,4e-05,105940.0,105930.0,0.53995027]
[1737321218565,4e-05,105940.0,105930.0,0.53522844]
[1737321219662,0.00094993,105950.0,105940.0,0.30603293]
[1737321219869,0.00094993,105950.0,105940.0,0.61228771]
[1737321220487,0.00094993,105950.0,105940.0,0.40048613]
[1737321221002,0.00094993,105950.0,105940.0,0.41583493]
[1737321222955,4e-05,105960.0,105950.0,0.094384]
[1737321223788,4e-05,105960.0,105950.0,0.1097328]
[1737321224319,4e-05,105960.0,105950.0,0.11268439]
[1737321225486,8e-05,105960.0,105950.0,0.11268439]
[1737321227800,8e-05,105960.0,105950.0,0.12261764]
[1737321230153,8e-05,105960.0,105950.0,0.12304614]
[1737321230367,0.00097986,105960.0,105950.0,0.12304614]
[1737321231936,0.00097986,105960.0,105950.0,0.18468607]
[1737321235399,0.08508815,105960.0,105950.0,0.18468607]
[1737321235618,0.08384013,105960.0,105950.0,0.12304614]
[1737321236517,0.37824424,105960.0,105950.0,0.12304614]
[1737321237974,0.58895049,105960.0,105950.0,0.12304614]
[1737321238703,0.2528475,105960.0,105950.0,0.31180714]
[1737321239954,0.5380386,105960.0,105950.0,0.31180714]
[1737321242794,0.2528475,105960.0,105950.0,0.31180714]
[1737321243574,0.25374736,105960.0,105950.0,0.31180714]
[1737321244029,0.25374736,105960.0,105950.0,0.46180714]
[1737321245265,0.46567037,105960.0,105950.0,0.46180714]
[1737321245681,0.46567037,105960.0,105950.0,0.52344707]
[1737321246329,0.38235815,105960.0,105950.0,0.52344707]
[1737321246712,0.38235815,105960.0,105950.0,0.46180714]
[1737321247128,0.50950727,105960.0,105950.0,0.46180714]
[1737321248115,0.594271,105960.0,105950.0,0.46180714]
[1737321249639,0.594271,105960.0,105950.0,0.31180714]
[1737321249848,0.86615949,105960.0,105950.0,0.30187389]
[1737321250133,0.4847012,105960.0,105950.0,0.11311289]
[1737321250318,0.3903262,105960.0,105950.0,0.11311289]
[1737321251430,0.52563585,105960.0,105950.0,0.11311289]
[1737321251990,0.7375542,105960.0,105950.0,0.11311289]
[1737321252912,0.52563585,105960.0,105950.0,0.11311289]
[1737321253340,0.52563585,105960.0,105950.0,0.117836]
[1737321255360,0.52563585,105960.0,105950.0,0.11311289]
[1737321255597,0.67508934,105960.0,105950.0,0.01872889]
[1737321255795,0.6696,105920.0,105910.0,0.0004279]
[1737321255998,0.42686349,105920.0,105910.0,0.0004279]
[1737321256200,0.42686349,105920.0,105910.0,0.00057782]
[1737321256611,0.80818449,105920.0,105910.0,0.00530233]
[1737321257635,0.80818449,105920.0,105910.0,0.00057782]
[1737321257636,1.15495343,105920.0,105910.0,0.00057782]
[1737321258020,1.29036603,105920.0,105910.0,0.00057782]
[1737321258225,1.34036603,105920.0,105910.0,0.00057782]
[1737321258585,0.75271099,105920.0,105910.0,0.00057782]
[1737321258787,0.75271099,105920.0,105900.0,0.0004277]
[1737321258788,0.506,105910.0,105900.0,0.00018623]
[1737321258971,0.69493249,105910.0,105900.0,0.0002361]
[1737321260013,0.78944598,105910.0,105900.0,0.0002361]
[1737321260197,0.094428,105900.0,105890.0,0.0004275]
[1737321260399,0.19012211,105900.0,105890.0,0.00057753]
[1737321261944,0.78081675,105900.0,105890.0,0.00057753]
[1737321262125,0.77963613,105900.0,105890.0,0.00057753]
[1737321263220,0.56867376,105900.0,105890.0,0.00057753]
[1737321263634,0.18894149,105900.0,105890.0,0.00057753]
[1737321263823,0.19012211,105900.0,105890.0,0.00057753]
[1737321265287,0.466224,105930.0,105910.0,0.094419]
[1737321265490,0.09451349,105920.0,105910.0,0.283248]
[1737321265687,0.321,105940.0,105920.0,0.188807]
[1737321265888,0.09451349,105930.0,105920.0,0.283209]
[1737321266126,0.2844868,105930.0,105920.0,0.283217]
[1737321266721,0.69869249,105940.0,105920.0,0.283217]
[1737321266916,0.69869249,105940.0,105920.0,0.377617]
[1737321267094,0.69869249,105940.0,105920.0,0.47202]
[1737321267296,0.19009457,105930.0,105920.0,0.28321]
[1737321267488,0.09451349,105930.0,105920.0,0.28321]
[1737321268064,0.19009462,105930.0,105920.0,0.28321]
[1737321268483,0.37891062,105930.0,105920.0,0.09441]
[1737321268687,0.37891062,105930.0,105920.0,0.00590539]
[1737321268688,0.37773049,105930.0,105920.0,0.00590539]
[1737321269753,0.55333049,105930.0,105920.0,0.00590539]
[1737321269962,0.094419,105910.0,105900.0,0.29271477]
[1737321270178,0.09569382,105910.0,105900.0,0.29566798]
[1737321270794,0.09451349,105910.0,105900.0,0.29566798]
[1737321271371,0.09451349,105910.0,105900.0,0.3015745]
[1737321271574,0.09569381,105910.0,105900.0,0.3015745]
[1737321271802,0.18893249,105910.0,105900.0,0.3015745]
[1737321272003,0.09451349,105910.0,105900.0,0.3015745]
[1737321273047,0.09451349,105910.0,105900.0,0.29111338]
[1737321274083,0.09451349,105910.0,105900.0,0.29361433]
[1737321275155,1.16835534,105930.0,105910.0,0.188824]
[1737321275156,0.54921534,105930.0,105910.0,0.188824]
[1737321275380,0.09451349,105920.0,105910.0,0.283243]
[1737321275655,0.37920934,105930.0,105920.0,0.09441]
[1737321275863,0.47372283,105930.0,105920.0,0.09441]
[1737321276267,0.56812383,105930.0,105920.0,0.09441]
[1737321276668,0.56812383,105930.0,105920.0,0.10976529]
[1737321277086,0.27318323,105930.0,105920.0,0.10976529]
[1737321277259,0.27318323,105930.0,105920.0,0.01535529]
[1737321277826,0.46198823,105930.0,105910.0,0.28619321]
[1737321278055,0.00118018,105920.0,105910.0,0.28324]
[1737321278254,0.56775467,105920.0,105900.0,0.46930759]
[1737321278458,0.37774549,105920.0,105910.0,0.094419]
[1737321279666,0.37774549,105920.0,105910.0,0.09737217]
[1737321279812,0.188822,105920.0,105910.0,0.09737217]
[1737321280203,0.25370609,105960.0,105910.0,0.09746666]
[1737321280421,0.24702187,105970.0,105960.0,0.317375]
[1737321280623,0.16942017,105970.0,105960.0,0.65658565]
[1737321280851,0.16942017,105970.0,105960.0,0.53330579]
[1737321281059,0.16942017,105970.0,105960.0,0.5887923]
[1737321281262,0.16942017,105970.0,105960.0,0.3387923]
[1737321281463,0.16942017,105970.0,105960.0,0.244375]
[1737321281645,0.16957006,105970.0,105960.0,0.244375]
[1737321282205,0.00014989,105970.0,105960.0,0.32870415]
[1737321282394,0.00014989,105970.0,105960.0,0.42870415]
[1737321282593,0.00014989,105970.0,105960.0,0.57870415]
[1737321283233,0.00014989,105970.0,105960.0,0.494375]
[1737321284895,0.00014989,105970.0,105960.0,0.244375]
[1737321285091,0.00014989,105970.0,105960.0,0.33875]
[1737321286635,0.00794989,105970.0,105960.0,0.33875]
[1737321287207,0.00014989,105970.0,105960.0,0.33875]
[1737321287407,0.00794989,105970.0,105960.0,0.40038993]
[1737321287831,0.00014989,105970.0,105960.0,0.33875]
[1737321288053,0.00794989,105970.0,105960.0,0.33875]
[1737321289310,0.00794989,105970.0,105960.0,0.34125095]
[1737321289429,0.00794989,105970.0,105960.0,0.40289088]
[1737321289868,0.00794989,105970.0,105960.0,0.40331938]
[1737321290069,0.00794989,105970.0,105960.0,0.40331937]
[1737321290070,0.00884975,105970.0,105960.0,0.40331937]
[1737321290444,0.00104975,105970.0,105960.0,0.40922215]
[1737321290749,0.00884975,105970.0,105960.0,0.40922215]
[1737321292448,0.00104975,105970.0,105960.0,0.62086207]
[1737321292658,0.00884975,105970.0,105960.0,0.62086206]
[1737321292864,0.00884975,105970.0,105960.0,0.16484713]
[1737321293115,0.00104975,105970.0,105960.0,0.34758219]
[1737321293317,0.00884975,105970.0,105960.0,0.35702672]
[1737321294472,0.00104975,105970.0,105960.0,0.35702672]
[1737321294659,0.00884975,105970.0,105960.0,0.35702671]
[1737321296407,0.0078,105970.0,105960.0,0.54577471]
[1737321296624,0.0078,105970.0,105960.0,0.5457747]
[1737321297071,4e-05,105980.0,105970.0,0.094366]
[1737321297290,4e-05,105980.0,105970.0,0.40288182]
[1737321297496,4e-05,105980.0,105970.0,0.49731801]
[1737321297702,0.00784,105980.0,105970.0,0.497318]
[1737321297911,0.00784,105980.0,105970.0,0.51266531]
[1737321298098,4e-05,105980.0,105970.0,0.5126653]
[1737321298258,0.00784,105980.0,105970.0,0.51266529]
[1737321298849,0.00784,105980.0,105970.0,0.51266528]
[1737321299080,0.00784,105980.0,105970.0,0.41822908]
[1737321299285,0.00784,105980.0,105970.0,0.41822907]
[1737321299711,4e-05,105980.0,105970.0,0.41822907]
[1737321300239,4e-05,105980.0,105970.0,0.35658914]
[1737321300434,0.00784,105980.0,105970.0,0.11221413]
[1737321300842,0.10235349,105980.0,105970.0,0.11221413]
[1737321301779,0.10353309,105980.0,105970.0,0.11221413]
[1737321301911,0.10353309,105980.0,105970.0,0.01784813]
[1737321302111,0.27959009,105980.0,105970.0,0.01784813]
[1737321302317,0.27931035,105980.0,105970.0,0.01784813]
[1737321302516,0.27931035,105980.0,105970.0,0.01784812]
[1737321303413,0.18495335,105980.0,105970.0,0.11221412]
[1737321303618,0.18613304,105980.0,105970.0,0.11221412]
[1737321304245,0.28049004,105980.0,105970.0,0.01784812]
[1737321304469,0.27931035,105980.0,105970.0,0.01784812]
[1737321304717,0.52513875,105980.0,105970.0,0.01784812]
[1737321305843,0.43493535,105980.0,105970.0,0.01784812]
[1737321306090,0.81761035,105980.0,105970.0,0.01784812]
[1737321306271,0.45231035,105980.0,105970.0,0.01784812]
[1737321306444,0.44451035,105980.0,105970.0,0.01784812]
[1737321306813,0.45231035,105980.0,105970.0,0.01784812]
[1737321307273,0.53902384,105980.0,105970.0,0.00250081]
[1737321307475,0.54682384,105980.0,105970.0,0.00250081]
[1737321308055,0.53902384,105980.0,105970.0,0.00250081]
[1737321308279,0.54682384,105980.0,105970.0,0.00250081]
[1737321309599,0.59432384,105980.0,105970.0,0.00250081]
[1737321309812,0.79432384,105980.0,105970.0,0.00250081]
[1737321310052,1.09432384,105980.0,105970.0,0.00250081]
[1737321310452,1.09432384,105980.0,105970.0,8.1e-07]
[1737321310825,0.89432384,105980.0,105970.0,8.1e-07]
[1737321311079,0.345866,105970.0,105960.0,0.0004285]
[1737321311287,0.53489298,105970.0,105960.0,0.0004285]
[1737321312309,0.53489298,105970.0,105920.0,0.00767759]
[1737321312310,0.005625,105940.0,105920.0,0.00767759]
[1737321312483,0.43083949,105930.0,105920.0,0.00782748]
[1737321313702,0.43083949,105930.0,105920.0,0.00310281]
[1737321314324,0.43083949,105930.0,105920.0,0.00900949]
[1737321314547,0.43083949,105930.0,105920.0,0.00605657]
[1737321315530,0.43083949,105930.0,105920.0,0.00014989]
[1737321315751,0.52535298,105930.0,105920.0,0.00014989]
[1737321315977,0.51755298,105930.0,105920.0,0.00014989]
[1737321316180,0.45383949,105930.0,105920.0,0.00014989]
[1737321316555,0.44821449,105930.0,105920.0,0.00014989]
[1737321317738,0.45802343,105930.0,105920.0,0.00014989]
[1737321318148,0.4769282,105930.0,105920.0,0.00014989]
[1737321319221,0.7769282,105930.0,105920.0,8.9e-07]
[1737321319443,0.684719,105910.0,105900.0,0.00338227]
[1737321319681,0.80223249,105910.0,105900.0,0.0035323]
[1737321319856,0.80223249,105910.0,105900.0,0.00057873]
[1737321320052,0.53144598,105910.0,105900.0,0.00057873]
[1737321321463,0.33893249,105910.0,105900.0,0.00057873]
[1737321321667,0.19673249,105910.0,105900.0,0.09500673]
[1737321321867,0.1979129,105910.0,105900.0,0.00057873]
[1737321323029,0.1901129,105910.0,105900.0,0.00057873]
[1737321323472,0.1979129,105910.0,105900.0,0.00057873]
[1737321324535,0.1978729,105910.0,105900.0,0.00057873]
[1737321326051,0.1901129,105910.0,105900.0,0.00057873]
[1737321326261,0.1978729,105910.0,105900.0,0.00057873]
[1737321326705,0.1901129,105910.0,105900.0,0.09500673]
[1737321326920,0.09451349,105910.0,105900.0,0.14040673]
[1737321327168,0.10227349,105910.0,105900.0,0.14040673]
[1737321327366,0.19787287,105910.0,105900.0,0.14040673]
[1737321327743,0.196592,105920.0,105900.0,0.23478173]
[1737321327951,0.5755328,105920.0,105900.0,0.61543941]
[1737321328128,0.18893249,105910.0,105900.0,0.05483977]
[1737321328900,0.18893249,105910.0,105900.0,0.14926777]
[1737321329228,0.18893249,105910.0,105900.0,0.05483977]
[1737321329409,0.19011288,105910.0,105900.0,0.00943977]
[1737321330565,0.36311288,105910.0,105900.0,0.00353241]
[1737321330770,0.73285749,105910.0,105900.0,0.00353241]
[1737321331419,0.73285749,105910.0,105900.0,0.00057873]
[1737321333709,0.74061749,105910.0,105900.0,0.00057873]
[1737321335148,0.73499249,105910.0,105900.0,0.00057873]
[1737321335373,0.34669249,105910.0,105900.0,0.00057873]
[1737321335584,0.35231749,105910.0,105900.0,0.00057873]
[1737321335756,0.35231749,105910.0,105900.0,0.00353284]
[1737321335757,0.34669249,105910.0,105900.0,0.00353284]
[1737321336895,0.46983098,105910.0,105900.0,0.00353284]
[1737321337065,0.38735032,105910.0,105900.0,0.01889273]
[1737321337269,0.35096532,105910.0,105900.0,0.02361887]
[1737321338053,0.20096532,105910.0,105900.0,0.02361887]
[1737321338252,0.20214578,105910.0,105900.0,0.02361887]
[1737321338471,0.19787295,105910.0,105900.0,0.11804687]
[1737321338717,0.10227349,105910.0,105900.0,0.11804687]
[1737321339151,0.18893249,105910.0,105900.0,0.11804687]
[1737321339336,0.09451349,105910.0,105900.0,0.11804687]
[1737321339673,0.09451349,105910.0,105900.0,0.11920996]
[1737321339876,0.18893249,105910.0,105900.0,0.11920996]
[1737321340086,0.19011288,105910.0,105900.0,0.02478196]
[1737321340769,0.19011288,105910.0,105900.0,0.02361887]
[1737321340960,0.19011288,105910.0,105900.0,0.01889273]
[1737321341134,0.19011288,105910.0,105900.0,0.11332073]
[1737321341839,0.19011288,105910.0,105900.0,0.01889273]
[1737321342695,0.41784707,105910.0,105900.0,0.01889273]
[1737321342869,0.33893249,105910.0,105900.0,0.01889273]
[1737321343070,0.33893249,105910.0,105900.0,0.02361859]
[1737321343487,0.33893249,105910.0,105900.0,0.02478569]
[1737321343847,0.34669249,105910.0,105900.0,0.02478569]
[1737321344450,0.37162354,105910.0,105900.0,0.02478569]
[1737321344929,0.37162354,105910.0,105900.0,0.02361859]
[1737321346022,0.46539854,105910.0,105900.0,0.02361859]
[1737321346437,0.45763854,105910.0,105900.0,0.02361859]
[1737321346614,0.46539854,105910.0,105900.0,0.02361859]
[1737321346812,0.46539854,105910.0,105900.0,0.01889273]
[1737321347548,0.92820964,105910.0,105900.0,0.00944049]
[1737321347847,0.094446,105880.0,105870.0,0.1736221]
[1737321348200,0.1901402,105880.0,105870.0,0.1736221]
[1737321348636,0.18895949,105880.0,105870.0,0.18307615]
[1737321349047,0.09451349,105880.0,105870.0,0.27291315]
[1737321349222,0.09451349,105880.0,105870.0,0.27764011]
[1737321351366,0.44108,105890.0,105880.0,0.094446]
[1737321351545,0.52783349,105890.0,105880.0,0.094446]
[1737321351754,0.37783749,105890.0,105870.0,0.65543411]
[1737321351930,0.46230327,105890.0,105880.0,0.094446]
[1737321352133,0.46230327,105890.0,105870.0,0.65543311]
[1737321352341,0.46230327,105890.0,105880.0,0.01534811]
[1737321352744,0.46230327,105890.0,105880.0,0.10979411]
[1737321353062,0.58900194,105890.0,105880.0,0.10979411]
[1737321353296,0.30567794,105890.0,105880.0,0.20416911]
[1737321353499,0.21116445,105890.0,105880.0,0.47756911]
[1737321354323,0.87454946,105900.0,105890.0,0.094437]
[1737321354448,0.96906295,105900.0,105890.0,0.094437]
[1737321355067,0.96906295,105900.0,105890.0,0.10505815]
[1737321355692,0.58896694,105900.0,105890.0,0.10505815]
[1737321356185,0.40010794,105900.0,105890.0,0.10505815]
[1737321356389,0.40010794,105900.0,105890.0,0.10389105]
[1737321356588,0.40010794,105900.0,105890.0,0.10601792]
[1737321357109,0.30567794,105900.0,105890.0,0.10601792]
[1737321357612,0.21116445,105900.0,105890.0,0.48773285]
[1737321357814,0.21116445,105900.0,105890.0,0.52060442]
[1737321358019,0.38009601,105900.0,105890.0,0.52060442]
[1737321358231,0.38009601,105900.0,105890.0,0.42609292]
[1737321358586,0.38009601,105900.0,105890.0,0.27609292]
[1737321359194,0.38009601,105900.0,105890.0,0.42609292]
[1737321359406,0.68672905,105910.0,105900.0,0.244428]
[1737321359607,0.78124254,105910.0,105900.0,0.094428]
[1737321359975,0.97009754,105910.0,105900.0,0.01060192]
[1737321361087,0.97009754,105910.0,105900.0,0.01536145]
[1737321361298,0.97009754,105910.0,105900.0,0.01831515]
[1737321361506,0.68451502,105910.0,105900.0,0.01831515]
[1737321361712,0.74000153,105910.0,105900.0,0.01831515]
[1737321362114,0.74562653,105910.0,105900.0,0.01831515]
[1737321362316,0.74562653,105910.0,105900.0,0.01536145]
[1737321362467,0.81652653,105910.0,105900.0,0.01536145]
[1737321362678,0.8578045,105910.0,105900.0,0.01536145]
[1737321362883,0.95231799,105910.0,105900.0,0.01536145]
[1737321363875,0.244428,105900.0,105890.0,0.00255537]
[1737321364083,0.34670149,105900.0,105890.0,0.00255537]
[1737321364845,0.19670149,105900.0,105890.0,0.00550948]
[1737321365112,0.19788204,105900.0,105890.0,0.00550948]
[1737321365325,0.4523726,105900.0,105890.0,0.02086971]
[1737321365521,0.44343205,105900.0,105890.0,0.02086971]
[1737321366359,0.69787716,105900.0,105890.0,0.02086971]
[1737321367295,0.57064324,105900.0,105890.0,0.02086971]
[1737321369661,0.57064324,105900.0,105890.0,0.11530671]
[1737321369979,0.57064324,105900.0,105890.0,0.02086971]
[1737321370175,0.57064324,105900.0,105890.0,0.11530671]
[1737321370841,0.57064324,105900.0,105890.0,0.02086971]
[1737321371268,0.57019813,105900.0,105890.0,0.02086971]
[1737321371424,0.56633762,105900.0,105890.0,0.02086986]
[1737321373252,0.56633762,105900.0,105890.0,0.11530686]
[1737321373693,0.56633762,105900.0,105890.0,0.02086986]
[1737321374566,0.56633762,105900.0,105890.0,0.11530686]
[1737321374891,0.69362631,105900.0,105890.0,0.11530686]
[1737321375086,0.50899044,105900.0,105890.0,0.28978187]
[1737321375291,0.50899044,105900.0,105890.0,0.43978188]
[1737321375547,0.50899044,105900.0,105890.0,0.43978189]
[1737321375752,0.50899044,105900.0,105890.0,0.4397819]
[1737321376300,0.38179322,105900.0,105890.0,0.4397819]
[1737321376510,0.38179322,105900.0,105890.0,0.44092979]
[1737321376716,0.38179322,105900.0,105890.0,0.4409298]
[1737321377368,0.38179322,105900.0,105890.0,0.44092981]
[1737321377582,0.08485931,105900.0,105890.0,0.44092981]
[1737321377798,0.08485931,105900.0,105890.0,0.50256976]
[1737321378012,0.08485931,105900.0,105890.0,0.44092984]
[1737321378215,0.08485931,105900.0,105890.0,0.44092985]
[1737321378619,0.59489934,105910.0,105900.0,0.338803]
[1737321378832,0.59489934,105910.0,105900.0,0.34093015]
[1737321379036,0.78383183,105910.0,105900.0,0.24655515]
[1737321379283,0.78383183,105910.0,105900.0,0.19093016]
[1737321379485,0.78383183,105910.0,105900.0,0.09655516]
[1737321379634,0.40213008,105910.0,105900.0,0.09655516]
[1737321379843,0.30771108,105910.0,105900.0,0.19093016]
[1737321380044,0.40213008,105910.0,105900.0,0.09655516]
[1737321380458,0.40213008,105910.0,105900.0,0.1148695]
[1737321380852,0.40213008,105910.0,105900.0,0.0204415]
[1737321381236,0.69897252,105910.0,105900.0,0.0204415]
[1737321382224,0.69897252,105910.0,105900.0,0.1148695]
[1737321383268,0.69897252,105910.0,105900.0,0.0204415]
[1737321383476,0.69897252,105910.0,105900.0,0.1148695]
[1737321383690,0.69897252,105910.0,105900.0,0.0204415]
[1737321384719,0.57168383,105910.0,105900.0,0.0204415]
[1737321385079,0.57168383,105910.0,105900.0,0.1148695]
[1737321385294,0.47726483,105910.0,105900.0,0.2092445]
[1737321385496,0.47726483,105910.0,105900.0,0.35924451]
[1737321385904,0.38275134,105910.0,105900.0,0.35924451]
[1737321386102,0.38275134,105910.0,105900.0,0.20924451]
[1737321386278,0.38275134,105910.0,105900.0,0.35924451]
[1737321386511,0.38275134,105910.0,105900.0,0.35924452]
[1737321386899,0.38275134,105910.0,105900.0,0.36039288]
[1737321387652,0.21311075,105910.0,105900.0,0.36039288]
[1737321387803,0.21311075,105910.0,105900.0,0.36039289]
[1737321390962,0.21311075,105910.0,105900.0,0.3603929]
[1737321392415,0.08587405,105910.0,105900.0,0.3603929]
[1737321394719,0.08587405,105910.0,105900.0,0.2103929]
[1737321394931,0.08587405,105910.0,105900.0,0.3603929]
[1737321395836,0.18029305,105910.0,105900.0,0.26596491]
[1737321396043,0.44898685,105910.0,105900.0,0.02158991]
[1737321396246,0.57504324,105910.0,105900.0,0.02158991]
[1737321396941,0.57504324,105910.0,105900.0,0.02201841]
[1737321397638,0.61747264,105910.0,105900.0,0.02087005]
[1737321398602,0.61747264,105910.0,105900.0,0.01791594]
[1737321401757,0.70299764,105910.0,105900.0,0.01791594]
[1737321401959,0.74627264,105910.0,105900.0,0.01791594]
[1737321402585,0.74627264,105910.0,105900.0,0.00255571]
[1737321403683,0.79816311,105910.0,105900.0,0.00255571]
[1737321403883,0.54367255,105910.0,105900.0,0.00255571]
[1737321404082,0.58629557,105910.0,105900.0,0.00255571]
[1737321404325,0.273053,105900.0,105890.0,6.763e-05]
[1737321404525,0.36756649,105900.0,105890.0,6.763e-05]
[1737321406216,0.90824476,105900.0,105890.0,6.763e-05]
[1737321407591,0.98814476,105900.0,105890.0,6.763e-05]
[1737321407753,1.08265825,105900.0,105890.0,6.763e-05]
[1737321408109,0.79641681,105900.0,105890.0,6.763e-05]
[1737321409210,0.79731667,105900.0,105890.0,6.763e-05]
[1737321410827,0.79169167,105900.0,105890.0,6.763e-05]
[1737321414619,1.26123207,105900.0,105890.0,6.763e-05]
[1737321415356,1.16671858,105900.0,105890.0,6.763e-05]
[1737321415719,0.72898279,105900.0,105890.0,6.763e-05]
[1737321417276,0.69686155,105900.0,105890.0,6.763e-05]
[1737321422803,0.69163177,105900.0,105890.0,6.763e-05]
[1737321424706,1.41544878,105900.0,105890.0,6.763e-05]
[1737321425202,0.117446,105880.0,105870.0,0.00338293]
[1737321425409,0.2208603,105880.0,105870.0,0.00338293]
[1737321425551,0.21967949,105880.0,105870.0,0.0004286]
[1737321426578,0.22530449,105880.0,105870.0,0.02051947]
[1737321427220,0.31981798,105880.0,105870.0,0.02051947]
[1737321427467,0.68567559,105880.0,105870.0,0.02051947]
[1737321428034,0.68567559,105880.0,105870.0,0.01106494]
[1737321428358,0.83005059,105880.0,105870.0,0.00633768]
[1737321429016,0.70306023,105880.0,105870.0,0.00633768]
[1737321429221,0.69534023,105880.0,105870.0,0.00633768]
[1737321429433,0.70306023,105880.0,105870.0,0.00633768]
[1737321429799,0.71472801,105880.0,105870.0,0.00633768]
[1737321430343,0.8092415,105880.0,105870.0,0.00633768]
[1737321431766,0.71472801,105880.0,105870.0,0.00633768]
[1737321432891,0.73355909,105880.0,105870.0,0.00633768]
[1737321433517,0.73355909,105880.0,105870.0,0.0004286]
[1737321437172,0.46232801,105880.0,105870.0,0.0004286]
[1737321437385,0.35621423,105880.0,105870.0,0.2263286]
[1737321437590,0.45066023,105880.0,105870.0,0.0763286]
[1737321437793,0.47366023,105880.0,105870.0,0.22928304]
[1737321437947,0.45066023,105880.0,105870.0,0.22928304]
[1737321438875,0.45066023,105880.0,105870.0,0.2446461]
[1737321438876,0.30431562,105880.0,105870.0,0.2446461]
[1737321439668,0.30431562,105880.0,105870.0,0.0946461]
[1737321439891,0.43126982,105880.0,105870.0,0.2446461]
[1737321440463,0.52578331,105880.0,105870.0,0.0946461]
[1737321440669,0.43689482,105880.0,105870.0,0.0187461]
[1737321440879,0.58689482,105880.0,105870.0,0.0187461]
[1737321441096,0.58689482,105880.0,105870.0,0.00929191]
[1737321441499,0.66236982,105880.0,105870.0,0.00929191]
[1737321441711,0.75688331,105880.0,105870.0,0.00929191]
[1737321441919,1.05688331,105880.0,105870.0,0.00633747]
[1737321442359,1.09927372,105880.0,105870.0,0.0004286]
[1737321442596,1.02867619,105880.0,105870.0,0.0004286]
[1737321443069,0.6264427,105880.0,105870.0,0.0004286]
[1737321443276,0.5586877,105880.0,105870.0,0.0004286]
[1737321443480,0.5909484,105880.0,105870.0,0.0004286]
[1737321443956,0.267455,105870.0,105860.0,0.08091114]
[1737321444161,0.16685536,105870.0,105860.0,0.08091114]
[1737321444458,0.17457536,105870.0,105860.0,0.13071114]
[1737321444816,0.17457536,105870.0,105860.0,0.13662111]
[1737321445258,0.10223349,105870.0,105860.0,0.23158554]
[1737321445580,0.45076583,105870.0,105860.0,0.13712154]
[1737321445856,0.45076583,105870.0,105860.0,0.146577]
[1737321446025,0.45076583,105870.0,105860.0,0.14953183]
[1737321446535,0.40847085,105870.0,105860.0,0.14953183]
[1737321446742,0.40847085,105870.0,105860.0,0.29953183]
[1737321447100,0.30629585,105870.0,105860.0,0.39399583]
[1737321447303,0.09451349,105870.0,105860.0,0.39399583]
[1737321447537,0.18896849,105870.0,105860.0,0.29953183]
[1737321447742,0.09451349,105870.0,105860.0,0.39399583]
[1737321448505,0.40723005,105870.0,105860.0,0.29953183]
[1737321448712,0.40723005,105870.0,105860.0,0.39872335]
[1737321449343,0.09451349,105870.0,105860.0,0.39872335]
[1737321449546,0.30630493,105870.0,105860.0,0.49309835]
[1737321449795,0.30630493,105870.0,105860.0,0.48837083]
[1737321450617,0.60284059,105870.0,105860.0,0.48837083]
[1737321451688,0.60284059,105870.0,105860.0,0.48989617]
[1737321453846,0.60284059,105870.0,105860.0,0.47453074]
[1737321454072,0.60284059,105870.0,105860.0,0.47892264]
[1737321454447,0.5083271,105870.0,105860.0,0.58882168]
[1737321454845,0.5083271,105870.0,105860.0,0.80046161]
[1737321455752,0.08471742,105870.0,105860.0,0.98747347]
[1737321456169,0.08471742,105870.0,105860.0,0.98451864]
[1737321456372,0.08471742,105870.0,105860.0,1.07946073]
[1737321456586,0.08561748,105870.0,105860.0,1.07946073]
[1737321456757,0.00090006,105870.0,105860.0,1.0178208]
[1737321457615,0.00090006,105870.0,105860.0,1.07946073]
[1737321458845,0.21270399,105890.0,105880.0,0.617621]
[1737321459044,0.21270399,105890.0,105880.0,0.87266192]
[1737321459471,0.00089986,105890.0,105880.0,0.87266192]
[1737321460678,0.00089986,105890.0,105880.0,0.88802496]
[1737321462674,0.00089986,105890.0,105880.0,1.13802496]
[1737321463372,0.00089986,105890.0,105880.0,0.97638503]
[1737321464146,0.00089986,105890.0,105880.0,1.03802496]
[1737321465359,0.00089986,105890.0,105880.0,1.04951349]
[1737321466327,0.00089986,105890.0,105880.0,0.98787356]
[1737321466711,0.00089986,105890.0,105880.0,0.68787356]
[1737321466926,0.00089986,105890.0,105880.0,0.59488555]
[1737321467118,0.00089986,105890.0,105880.0,0.59488554]
[1737321468006,0.00089986,105890.0,105880.0,0.74604463]
[1737321472870,0.00089986,105890.0,105880.0,0.74604462]
[1737321475530,0.00089986,105890.0,105880.0,0.74488553]
[1737321475879,0.00089986,105890.0,105880.0,0.80652546]
[1737321476108,0.00089986,105890.0,105880.0,0.90103895]
[1737321478096,0.00089986,105890.0,105880.0,0.90103894]
[1737321480361,0.00089986,105890.0,105880.0,0.74488552]
[1737321480507,0.00089986,105890.0,105880.0,0.46608552]
[1737321480710,0.00089986,105890.0,105880.0,0.37158992]
[1737321480951,0.00089986,105890.0,105880.0,0.45428992]
[1737321481161,0.00089986,105890.0,105880.0,0.54879832]
[1737321481562,0.00089986,105890.0,105880.0,0.76043825]
[1737321481801,0.00089986,105890.0,105880.0,0.74779832]
[1737321482128,0.00089986,105890.0,105880.0,0.90395174]
[1737321483036,0.00089986,105890.0,105880.0,0.8423118]
[1737321483441,0.00089986,105890.0,105880.0,0.74779831]
[1737321483865,0.00089986,105890.0,105880.0,0.46609831]
[1737321485694,0.00089986,105890.0,105880.0,0.45460978]
[1737321485915,0.09533686,105890.0,105880.0,0.26572638]
[1737321486120,0.09651735,105890.0,105880.0,0.36010138]
[1737321486278,0.18985035,105890.0,105880.0,0.36010138]
[1737321487141,0.18985035,105890.0,105880.0,0.26868017]
[1737321487518,0.1910309,105890.0,105880.0,0.02423417]
[1737321487895,0.3138309,105890.0,105880.0,0.02423417]
[1737321488097,0.31265035,105890.0,105880.0,0.02539658]
[1737321488301,0.39730746,105890.0,105880.0,0.02539658]
[1737321489642,0.69360736,105890.0,105880.0,0.02423417]
[1737321490375,0.70502503,105890.0,105880.0,0.02423417]
[1737321490602,0.91666782,105890.0,105880.0,0.02423417]
[1737321490812,0.90525015,105890.0,105880.0,0.02423417]
[1737321491431,0.82059304,105890.0,105880.0,0.02423417]
[1737321492140,1.09578653,105890.0,105880.0,0.02423417]
[1737321492387,1.00127304,105890.0,105880.0,0.02423417]
[1737321492623,0.87428737,105890.0,105880.0,0.02423417]
[1737321492876,0.87428737,105890.0,105880.0,0.02128038]
[1737321493128,0.87428737,105890.0,105880.0,0.00591734]
[1737321493614,0.88524618,105890.0,105880.0,0.00591734]
[1737321494358,0.75826051,105890.0,105880.0,0.00591734]
[1737321494597,0.472247,105880.0,105860.0,0.52869603]
[1737321494823,0.09451349,105870.0,105860.0,0.52869603]
[1737321495112,0.18896649,105880.0,105870.0,0.094455]
[1737321495337,0.37904121,105880.0,105860.0,0.71760203]
[1737321495590,0.37786049,105880.0,105860.0,0.71760203]
[1737321496010,0.37786049,105880.0,105860.0,0.62610039]
[1737321496212,0.8852679,105880.0,105860.0,0.73592007]
[1737321496425,0.6963739,105880.0,105860.0,0.64145307]
[1737321496868,0.6963739,105880.0,105860.0,0.73591007]